fUST/lending_fUST_20260611
["ID","MTS","AMOUNT","RATE_DAILY","PERIOD"]
[424801544,1781172657000,-501.65679782,0.00036712,18]
[424801543,1781172657000,-502.53112317,0.00036712,18]
[424801548,1781172657000,-500.0,0.00036712,2]
[424801550,1781172657000,-500.0,0.00036712,18]
[424801560,1781172657000,-252.03091596,0.00036712,18]
[424801553,1781172657000,-500.0,0.00036712,18]
[424801561,1781172657000,-500.0,0.00036712,18]
[424801549,1781172657000,-500.0,0.00036712,18]
[424801557,1781172657000,-500.0,0.00036712,18]
[424801555,1781172657000,-500.0,0.00036712,18]
[424801556,1781172657000,-500.0,0.00036712,18]
[424801551,1781172657000,-500.0,0.00036712,18]
[424801552,1781172657000,-500.0,0.00036712,18]
[424801554,1781172657000,-500.0,0.00036712,18]
[424801558,1781172657000,-500.0,0.00036712,18]
[424801559,1781172657000,-500.0,0.00036712,18]
[424801564,1781172657000,-500.0,0.00036712,18]
[424801562,1781172657000,-500.0,0.00036712,18]
[424801565,1781172657000,-502.12801059,0.00036712,7]
[424801563,1781172657000,-500.0,0.00036712,18]
[424801499,1781172657000,-708.33,0.00036712,18]
[424801539,1781172657000,-500.0,0.00036712,18]
[424801535,1781172657000,-500.0,0.00036712,18]
[424801566,1781172657000,-500.0,0.00036712,18]
[424801532,1781172657000,-500.0,0.00036712,18]
[424801538,1781172657000,-541.66,0.00036712,18]
[424801501,1781172657000,-500.0,0.00036712,18]
[424801505,1781172657000,-500.0,0.00036712,18]
[424801500,1781172657000,-500.0,0.00036712,18]
[424801504,1781172657000,-500.0,0.00036712,18]
[424801506,1781172657000,-500.0,0.00036712,18]
[424801510,1781172657000,-309.25260847,0.00036712,18]
[424801521,1781172657000,-500.0,0.00036712,18]
[424801514,1781172657000,-500.0,0.00036712,18]
[424801517,1781172657000,-571.57,0.00036712,18]
[424801512,1781172657000,-553.09634011,0.00036712,18]
[424801515,1781172657000,-500.0,0.00036712,18]
[424801513,1781172657000,-500.0,0.00036712,18]
[424801511,1781172657000,-500.0,0.00036712,18]
[424801567,1781172657000,-500.0,0.00036712,18]
[424801503,1781172657000,-500.0,0.00036712,18]
[424801516,1781172657000,-502.5580772,0.00036712,18]
[424801519,1781172657000,-500.0,0.00036712,18]
[424801527,1781172657000,-500.0,0.00036712,18]
[424801529,1781172657000,-500.0,0.00036712,18]
[424801526,1781172657000,-500.0,0.00036712,18]
[424801528,1781172657000,-541.66,0.00036712,18]
[424801530,1781172657000,-500.0,0.00036712,18]
[424801524,1781172657000,-500.0,0.00036712,18]
[424801525,1781172657000,-500.0,0.00036712,18]
[424801531,1781172657000,-593.10925278,0.00036712,18]
[424801534,1781172657000,-500.0,0.00036712,18]
[424801523,1781172657000,-500.0,0.00036712,18]
[424801522,1781172657000,-500.0,0.00036712,18]
[424801533,1781172657000,-323.27660096,0.00036712,18]
[424801520,1781172657000,-500.0,0.00036712,18]
[424801609,1781172658000,-500.0,0.00036712,18]
[424801608,1781172658000,-500.0,0.00036712,18]
[424801610,1781172658000,-500.0,0.00036712,18]
[424801604,1781172658000,-500.0,0.00036712,18]
[424801601,1781172658000,-500.0,0.00036712,18]
[424801613,1781172658000,-500.0,0.00036712,18]
[424801614,1781172658000,-502.87497475,0.00036712,18]
[424801602,1781172658000,-1080.79,0.00036712,18]
[424801612,1781172658000,-500.0,0.00036712,18]
[424801605,1781172658000,-500.0,0.00036712,18]
[424801590,1781172658000,-500.0,0.00036712,18]
[424801603,1781172658000,-1025.42,0.00036712,18]
[424801600,1781172658000,-500.0,0.00036712,18]
[424801624,1781172658000,-500.0,0.00036712,18]
[424801607,1781172658000,-500.0,0.00036712,18]
[424801611,1781172658000,-500.0,0.00036712,18]
[424801615,1781172658000,-500.0,0.00036712,18]
[424801617,1781172658000,-500.0,0.00036712,18]
[424801616,1781172658000,-500.0,0.00036712,18]
[424801626,1781172658000,-624.85939723,0.00036712,18]
[424801625,1781172658000,-1904.41,0.00036712,18]
[424801619,1781172658000,-500.0,0.00036712,18]
[424801621,1781172658000,-597.88263071,0.00036712,18]
[424801623,1781172658000,-500.0,0.00036712,18]
[424801618,1781172658000,-500.0,0.00036712,18]
[424801594,1781172658000,-500.0,0.00036712,18]
[424801620,1781172658000,-500.0,0.00036712,18]
[424801606,1781172658000,-500.84962535,0.00036712,18]
[424801598,1781172658000,-500.0,0.00036712,18]
[424801578,1781172658000,-500.0,0.00036712,18]
[424801599,1781172658000,-520.34087632,0.00036712,18]
[424801627,1781172658000,-500.0,0.00036712,18]
[424801573,1781172658000,-500.0,0.00036712,18]
[424801574,1781172658000,-500.0,0.00036712,18]
[424801570,1781172658000,-500.0,0.00036712,18]
[424801568,1781172658000,-500.0,0.00036712,18]
[424801571,1781172658000,-514.64706162,0.00036712,18]
[424801572,1781172658000,-500.0,0.00036712,18]
[424801569,1781172658000,-500.0,0.00036712,18]
[424801587,1781172658000,-464.30674591,0.00036712,18]
[424801576,1781172658000,-500.0,0.00036712,18]
[424801586,1781172658000,-500.0,0.00036712,18]
[424801577,1781172658000,-500.0,0.00036712,18]
[424801588,1781172658000,-500.80837305,0.00036712,18]
[424801575,1781172658000,-404.5658183,0.00036712,18]
[424801583,1781172658000,-633.39500937,0.00036712,18]
[424801584,1781172658000,-572.7499429,0.00036712,18]
[424801579,1781172658000,-523.15,0.00036712,18]
[424801582,1781172658000,-639.15,0.00036712,18]
[424801580,1781172658000,-500.0,0.00036712,18]
[424801585,1781172658000,-501.18421318,0.00036712,18]
[424801581,1781172658000,-500.0,0.00036712,18]
[424801589,1781172658000,-500.0,0.00036712,18]
[424801593,1781172658000,-203.67382024,0.00036712,18]
[424801591,1781172658000,-500.0,0.00036712,18]
[424801597,1781172658000,-500.0,0.00036712,18]
[424801595,1781172658000,-500.0,0.00036712,18]
[424801596,1781172658000,-503.01407966,0.00036712,18]
[424801592,1781172658000,-541.78,0.00036712,18]
[424801622,1781172658000,-501.35607253,0.00036712,18]
[424801631,1781172658000,-500.85805438,0.00036712,18]
[424801628,1781172658000,-500.0,0.00036712,18]
[424801663,1781172658000,-500.0,0.00036712,18]
[424801664,1781172658000,-500.0,0.00036712,18]
[424801660,1781172658000,-620.69,0.00036712,6]
[424801662,1781172658000,-500.0,0.00036712,18]
[424801666,1781172658000,-500.0,0.00036712,18]
[424801669,1781172658000,-500.0,0.00036712,18]
[424801667,1781172658000,-500.0,0.00036712,18]
[424801670,1781172658000,-631.00150612,0.00036712,18]
[424801668,1781172658000,-500.0,0.00036712,18]
[424801673,1781172658000,-608.07,0.00036712,18]
[424801672,1781172658000,-500.0,0.00036712,18]
[424801671,1781172658000,-500.0,0.00036712,18]
[424801674,1781172658000,-500.0,0.00036712,18]
[424801661,1781172658000,-500.0,0.00036712,18]
[424801675,1781172658000,-500.0,0.00036712,18]
[424801677,1781172658000,-500.0,0.00036712,14]
[424801680,1781172658000,-500.0,0.00036712,18]
[424801683,1781172658000,-169.37088218,0.00036712,18]
[424801676,1781172658000,-500.0,0.00036712,18]
[424801679,1781172658000,-500.0,0.00036712,18]
[424801681,1781172658000,-500.0,0.00036712,18]
[424801682,1781172658000,-500.0,0.00036712,18]
[424801684,1781172658000,-500.0,0.00036712,18]
[424801686,1781172658000,-500.0,0.00036712,18]
[424801685,1781172658000,-242.68326394,0.00036712,18]
[424801687,1781172658000,-500.0,0.00036712,18]
[424801639,1781172658000,-500.0,0.00036712,18]
[424801688,1781172658000,-500.0,0.00036712,18]
[424801678,1781172658000,-500.0,0.00036712,18]
[424801659,1781172658000,-500.0,0.00036712,18]
[424801689,1781172658000,-701.04,0.00036712,18]
[424801656,1781172658000,-881.44,0.00036712,18]
[424801658,1781172658000,-175.08275369,0.00036712,18]
[424801640,1781172658000,-500.0,0.00036712,18]
[424801633,1781172658000,-501.74927565,0.00036712,18]
[424801630,1781172658000,-500.0,0.00036712,18]
[424801629,1781172658000,-500.0,0.00036712,18]
[424801632,1781172658000,-500.0,0.00036712,18]
[424801638,1781172658000,-566.26552592,0.00036712,18]
[424801636,1781172658000,-500.0,0.00036712,18]
[424801635,1781172658000,-500.0,0.00036712,18]
[424801637,1781172658000,-500.0,0.00036712,18]
[424801641,1781172658000,-501.73751151,0.00036712,18]
[424801642,1781172658000,-500.0,0.00036712,18]
[424801649,1781172658000,-500.0,0.00036712,18]
[424801634,1781172658000,-651.16,0.00036712,18]
[424801644,1781172658000,-500.0,0.00036712,18]
[424801657,1781172658000,-500.0,0.00036712,18]
[424801654,1781172658000,-501.81116352,0.00036712,18]
[424801665,1781172658000,-575.74,0.00036712,18]
[424801655,1781172658000,-500.0,0.00036712,18]
[424801653,1781172658000,-500.0,0.00036712,18]
[424801648,1781172658000,-807.07,0.00036712,18]
[424801652,1781172658000,-500.0,0.00036712,18]
[424801646,1781172658000,-500.0,0.00036712,18]
[424801647,1781172658000,-500.0,0.00036712,18]
[424801651,1781172658000,-718.02,0.00036712,18]
[424801650,1781172658000,-502.26965037,0.00036712,18]
[424801643,1781172658000,-500.0,0.00036712,18]
[424801645,1781172658000,-500.0,0.00036712,18]
[424801730,1781172659000,-500.0,0.00036712,18]
[424801729,1781172659000,-500.0,0.00036712,18]
[424801731,1781172659000,-500.0,0.00036712,18]
[424801727,1781172659000,-826.86,0.00036712,18]
[424801723,1781172659000,-500.0,0.00036712,18]
[424801726,1781172659000,-1597.14,0.00036712,18]
[424801725,1781172659000,-500.0,0.00036712,18]
[424801722,1781172659000,-500.0,0.00036712,10]
[424801724,1781172659000,-500.0,0.00036712,18]
[424801721,1781172659000,-500.0,0.00036712,18]
[424801728,1781172659000,-500.0,0.00036712,18]
[424801732,1781172659000,-500.0,0.00036712,18]
[424801736,1781172659000,-196.27353504,0.00036712,18]
[424801735,1781172659000,-500.0,0.00036712,18]
[424801734,1781172659000,-500.0,0.00036712,18]
[424801740,1781172659000,-500.0,0.00036712,18]
[424801741,1781172659000,-500.0,0.00036712,18]
[424801737,1781172659000,-500.0,0.00036712,18]
[424801738,1781172659000,-500.0,0.00036712,18]
[424801743,1781172659000,-500.0,0.00036712,18]
[424801739,1781172659000,-500.0,0.00036712,18]
[424801744,1781172659000,-500.0,0.00036712,18]
[424801742,1781172659000,-500.0,0.00036712,18]
[424801745,1781172659000,-500.0,0.00036712,18]
[424801719,1781172659000,-2095.61,0.00036712,18]
[424801751,1781172659000,-2097.59,0.00036712,18]
[424801733,1781172659000,-500.0,0.00036712,18]
[424801717,1781172659000,-500.0,0.00036712,18]
[424801703,1781172659000,-500.0,0.00036712,18]
[424801716,1781172659000,-500.0,0.00036712,18]
[424801747,1781172659000,-686.06,0.00036712,18]
[424801696,1781172659000,-500.0,0.00036712,18]
[424801697,1781172659000,-543.41,0.00036712,18]
[424801691,1781172659000,-500.0,0.00036712,18]
[424801690,1781172659000,-500.0,0.00036712,18]
[424801692,1781172659000,-500.0,0.00036712,18]
[424801695,1781172659000,-500.0,0.00036712,18]
[424801694,1781172659000,-502.07837457,0.00036712,18]
[424801693,1781172659000,-500.0,0.00036712,18]
[424801698,1781172659000,-500.0,0.00036712,18]
[424801701,1781172659000,-500.0,0.00036712,18]
[424801700,1781172659000,-371.14363307,0.00036712,18]
[424801714,1781172659000,-500.0,0.00036712,18]
[424801708,1781172659000,-500.0,0.00036712,18]
[424801706,1781172659000,-500.0,0.00036712,18]
[424801709,1781172659000,-500.0,0.00036712,18]
[424801699,1781172659000,-500.0,0.00036712,18]
[424801702,1781172659000,-500.0,0.00036712,18]
[424801707,1781172659000,-570.39,0.00036712,18]
[424801704,1781172659000,-500.0,0.00036712,18]
[424801710,1781172659000,-500.0,0.00036712,18]
[424801720,1781172659000,-500.0,0.00036712,18]
[424801712,1781172659000,-500.0,0.00036712,18]
[424801715,1781172659000,-500.0,0.00036712,18]
[424801713,1781172659000,-500.0,0.00036712,18]
[424801718,1781172659000,-500.0,0.00036712,18]
[424801705,1781172659000,-500.0,0.00036712,18]
[424801750,1781172659000,-500.0,0.00036712,18]
[424801711,1781172659000,-500.0,0.00036712,18]
[424801753,1781172659000,-1478.08,0.00036712,18]
[424801795,1781172659000,-500.0,0.00036712,18]
[424801784,1781172659000,-500.0,0.00036712,18]
[424801794,1781172659000,-500.0,0.00036712,18]
[424801783,1781172659000,-1559.37,0.00036712,18]
[424801786,1781172659000,-20018.39,0.00036712,18]
[424801808,1781172659000,-182.76037741,0.00036712,18]
[424801787,1781172659000,-500.0,0.00036712,18]
[424801785,1781172659000,-500.0,0.00036712,18]
[424801790,1781172659000,-500.0,0.00036712,18]
[424801791,1781172659000,-500.0,0.00036712,2]
[424801788,1781172659000,-500.0,0.00036712,18]
[424801793,1781172659000,-500.0,0.00036712,18]
[424801780,1781172659000,-594.35,0.00036712,18]
[424801789,1781172659000,-500.0,0.00036712,18]
[424801799,1781172659000,-439.71597874,0.00036712,18]
[424801796,1781172659000,-500.0,0.00036712,18]
[424801802,1781172659000,-500.0,0.00036712,18]
[424801798,1781172659000,-500.0,0.00036712,18]
[424801800,1781172659000,-500.0,0.00036712,18]
[424801797,1781172659000,-500.0,0.00036712,18]
[424801803,1781172659000,-500.0,0.00036712,18]
[424801805,1781172659000,-500.0,0.00036712,18]
[424801801,1781172659000,-500.0,0.00036712,18]
[424801804,1781172659000,-502.4765373,0.00036712,18]
[424801806,1781172659000,-500.0,0.00036712,18]
[424801807,1781172659000,-500.0,0.00036712,18]
[424801792,1781172659000,-500.0,0.00036712,18]
[424801781,1781172659000,-500.0,0.00036712,18]
[424801782,1781172659000,-500.0,0.00036712,18]
[424801763,1781172659000,-572.27,0.00036712,18]
[424801749,1781172659000,-500.0,0.00036712,18]
[424801755,1781172659000,-500.0,0.00036712,18]
[424801746,1781172659000,-500.0,0.00036712,18]
[424801748,1781172659000,-297.82141775,0.00036712,18]
[424801754,1781172659000,-500.0,0.00036712,18]
[424801756,1781172659000,-500.0,0.00036712,18]
[424801757,1781172659000,-500.0,0.00036712,18]
[424801769,1781172659000,-500.0,0.00036712,18]
[424801759,1781172659000,-500.0,0.00036712,18]
[424801758,1781172659000,-531.02906389,0.00036712,18]
[424801767,1781172659000,-500.0,0.00036712,18]
[424801768,1781172659000,-151.53671076,0.00036712,18]
[424801762,1781172659000,-500.0,0.00036712,18]
[424801779,1781172659000,-1283.1,0.00036712,18]
[424801752,1781172659000,-383.06864037,0.00036712,18]
[424801770,1781172659000,-981.07,0.00036712,2]
[424801761,1781172659000,-500.0,0.00036712,18]
[424801764,1781172659000,-500.0,0.00036712,18]
[424801765,1781172659000,-765.71,0.00036712,18]
[424801766,1781172659000,-500.0,0.00036712,18]
[424801774,1781172659000,-500.0,0.00036712,18]
[424801771,1781172659000,-750.0,0.00036712,18]
[424801775,1781172659000,-598.86813592,0.00036712,18]
[424801776,1781172659000,-1000.0,0.00036712,2]
[424801777,1781172659000,-500.0,0.00036712,2]
[424801773,1781172659000,-500.0,0.00036712,18]
[424801772,1781172659000,-500.0,0.00036712,18]
[424801778,1781172659000,-500.0,0.00036712,18]
[424801760,1781172659000,-500.0,0.00036712,18]
[424801809,1781172838000,5000.0,0.00024658,30]
[424801810,1781172861000,5000.0,0.00024658,30]
[424801811,1781172883000,5000.0,0.00024658,30]
[424801812,1781173058000,152.0,0.00021376,120]
[424801840,1781173488000,152.0,0.00021492,120]
[424801842,1781173501000,-3814.0,0.0001883,2]
[424801841,1781173501000,-5000.0,0.00018642,2]
[424801844,1781173548000,-1697.6913242,0.00018642,2]
[424801843,1781173548000,-151.3086758,0.00018456,2]
[424802029,1781173832000,-1220.49529993,0.00018088,2]
[424802036,1781173832000,-3471.58656761,0.00018088,2]
[424802042,1781173832000,-350.1371516,0.00018271,2]
[424802038,1781173832000,-300.0,0.00018088,2]
[424802049,1781173832000,-5000.0,0.00018456,2]
[424802052,1781173832000,-178.0,0.00019899,2]
[424802050,1781173832000,-250.0,0.00019448,2]
[424802054,1781173832000,-184.29990332,0.0001996,2]
[424802040,1781173832000,-7.91813246,0.00018088,2]
[424802046,1781173832000,-4649.8628484,0.00018271,2]
[424802069,1781173832000,-155.06100112,0.00020122,2]
[424802065,1781173832000,-198.93232171,0.0002,2]
[424802067,1781173832000,-417.15472785,0.00020034,2]
[424802062,1781173832000,-859.85412238,0.0002,2]
[424802071,1781173832000,-369.83939732,0.000202,2]
[424802060,1781173832000,-247.35882564,0.00019982,7]
[424802063,1781173832000,-212.82681981,0.0002,2]
[424802056,1781173832000,-170.46704182,0.0001996,2]
[424802058,1781173832000,-204.30832363,0.0001996,2]
[424802189,1781173838000,-500.0,0.00020599,2]
[424802180,1781173838000,-500.0,0.00020599,2]
[424802177,1781173838000,-500.0,0.00020599,2]
[424802185,1781173838000,-500.0,0.00020599,2]
[424802191,1781173838000,-368.59980664,0.00020686,2]
[424802182,1781173838000,-500.0,0.00020599,2]
[424802187,1781173838000,-500.0,0.00020599,2]
[424802199,1781173838000,-408.61664726,0.00020686,2]
[424802193,1781173838000,-239.00083286,0.00020686,2]
[424802197,1781173838000,-340.93408364,0.00020686,2]
[424802201,1781173838000,-186.07727182,0.00021169,2]
[424802204,1781173838000,-478.00166572,0.00021169,2]
[424802206,1781173838000,-322.61682043,0.00021169,2]
[424802184,1781173838000,-500.0,0.00020599,2]
[424802195,1781173838000,-161.30841022,0.00020686,2]
[424802178,1781173838000,-209.56067365,0.00020599,2]
[424802155,1781173838000,-500.0,0.00020599,2]
[424802175,1781173838000,-500.0,0.00020599,2]
[424802208,1781173838000,-511.40112546,0.00021169,2]
[424802145,1781173838000,-198.93232171,0.000202,2]
[424802147,1781173838000,-155.06100112,0.00020222,2]
[424802149,1781173838000,-155.06100112,0.00020322,2]
[424802151,1781173838000,-155.06100112,0.00020422,2]
[424802153,1781173838000,-500.69312639,0.00020599,2]
[424802164,1781173838000,-516.46086959,0.00020599,2]
[424802165,1781173838000,-196.74945321,0.00020599,2]
[424802171,1781173838000,-500.0,0.00020599,2]
[424802167,1781173838000,-500.0,0.00020599,2]
[424802169,1781173838000,-500.0,0.00020599,2]
[424802158,1781173838000,-500.0,0.00020599,2]
[424802162,1781173838000,-500.0,0.00020599,2]
[424802160,1781173838000,-184.41647683,0.00020599,2]
[424802156,1781173838000,-500.0,0.00020599,2]
[424802173,1781173838000,-500.0,0.00020599,2]
[424802210,1781173838000,-612.92497089,0.00021169,2]
[424802265,1781173838000,-1241.72657085,0.0002453,2]
[424802202,1781173838000,-552.89970996,0.00021169,2]
[424802248,1781173838000,-795.39408712,0.00021814,2]
[424802250,1781173838000,-600.0,0.00021819,10]
[424802252,1781173838000,-954.47290455,0.00022297,2]
[424802256,1781173838000,-880.97156658,0.00023461,2]
[424802258,1781173838000,-720.0,0.00024001,10]
[424802267,1781173838000,-1241.72657085,0.0002453,2]
[424802260,1781173838000,-184.44,0.00024383,2]
[424802264,1781173838000,-1241.72657085,0.0002453,2]
[424802262,1781173838000,-193.22639488,0.0002453,2]
[424802213,1781173838000,-218.81289316,0.00021492,2]
[424802269,1781173838000,-1241.72657085,0.0002453,2]
[424802273,1781173838000,-1241.72657085,0.0002453,2]
[424802271,1781173838000,-1241.72657085,0.0002453,2]
[424802276,1781173838000,-1241.72657085,0.0002453,2]
[424802275,1781173838000,-1241.72657085,0.0002453,2]
[424802246,1781173838000,-1021.54161816,0.00021814,2]
[424802243,1781173838000,-183.0146499,0.00021521,120]
[424802254,1781173838000,-155.06100112,0.00022566,7]
[424802231,1781173838000,-681.86816728,0.00021492,2]
[424802211,1781173838000,-372.15454364,0.00021492,2]
[424802220,1781173838000,-717.00249858,0.00021492,2]
[424802218,1781173838000,-175.54838776,0.00021492,2]
[424802239,1781173838000,-210.95165851,0.00021492,2]
[424802215,1781173838000,-231.71918239,0.00021492,2]
[424802222,1781173838000,-199.54703963,0.00021492,2]
[424802224,1781173838000,-185.89102598,0.00021492,2]
[424802229,1781173838000,-296.35763056,0.00021492,2]
[424802217,1781173838000,-204.47983466,0.00021492,2]
[424802237,1781173838000,-253.39463449,0.00021492,2]
[424802228,1781173838000,-192.53319003,0.00021492,2]
[424802235,1781173838000,-184.14847678,0.00021492,2]
[424802241,1781173838000,-817.23329452,0.00021492,2]
[424802226,1781173838000,-151.93235494,0.00021492,2]
[424802244,1781173838000,-220.67935611,0.00021521,5]
[424802233,1781173838000,-275.49096197,0.00021492,2]
[424802320,1781173839000,-1416.0,0.0002508,2]
[424802318,1781173839000,-223.217,0.0002508,2]
[424802316,1781173839000,-444.0,0.0002508,2]
[424802309,1781173839000,-1266.56110226,0.0002453,2]
[424802310,1781173839000,-1266.56110226,0.0002453,2]
[424802314,1781173839000,-1266.56110226,0.0002453,2]
[424802303,1781173839000,-1266.56110226,0.0002453,2]
[424802301,1781173839000,-1266.56110226,0.0002453,2]
[424802307,1781173839000,-1266.56110226,0.0002453,2]
[424802312,1781173839000,-1266.56110226,0.0002453,2]
[424802299,1781173839000,-1266.56110226,0.0002453,2]
[424802322,1781173839000,-275.58,0.000251,7]
[424802297,1781173839000,-1266.56110226,0.0002453,2]
[424802295,1781173839000,-1241.72657085,0.0002453,2]
[424802290,1781173839000,-1241.72657085,0.0002453,2]
[424802294,1781173839000,-1241.72657085,0.0002453,2]
[424802286,1781173839000,-1241.72657085,0.0002453,2]
[424802284,1781173839000,-1241.72657085,0.0002453,2]
[424802288,1781173839000,-1241.72657085,0.0002453,2]
[424802282,1781173839000,-1241.72657085,0.0002453,2]
[424802292,1781173839000,-1241.72657085,0.0002453,2]
[424802280,1781173839000,-1241.72657085,0.0002453,2]
[424802278,1781173839000,-1241.72657085,0.0002453,2]
[424802305,1781173839000,-1266.56110226,0.0002453,2]
[424802334,1781173839000,-1000.0,0.00027955,30]
[424802375,1781173839000,-3060.77152114,0.00032286,2]
[424802323,1781173839000,-135560.30872941,0.00025444,2]
[424802332,1781173839000,-864.0,0.00026401,30]
[424802379,1781173839000,-247.55317184,0.00032877,10]
[424802377,1781173839000,-138.11026816,0.00032286,2]
[424802371,1781173839000,-1000.0,0.00031945,30]
[424802373,1781173839000,-244.0,0.00031945,30]
[424802369,1781173839000,-250.191889,0.0003109,10]
[424802367,1781173839000,-186.0,0.0003108,2]
[424802365,1781173839000,-444.0,0.0003108,2]
[424802363,1781173839000,-214.749,0.0003108,28]
[424802353,1781173839000,-797.0,0.000293,2]
[424802348,1781173839000,-151.0,0.000286,12]
[424802349,1781173839000,-1000.0,0.00029041,30]
[424802351,1781173839000,-151.0,0.000291,10]
[424802346,1781173839000,-1413.0,0.0002808,2]
[424802361,1781173839000,-193.799084,0.00030946,2]
[424802360,1781173839000,-97956.18739225,0.00030678,2]
[424802358,1781173839000,-1283838.98986237,0.00029518,2]
[424802342,1781173839000,-444.0,0.0002808,2]
[424802328,1781173839000,-17781.3577482,0.00025444,2]
[424802340,1781173839000,-15205.149149,0.00028,2]
[424802338,1781173839000,-179.0,0.0002796,10]
[424802331,1781173839000,-254251.14383347,0.00025444,2]
[424802326,1781173839000,-58411.89478892,0.00025444,2]
[424802336,1781173839000,-250.0,0.0002796,10]
[424802344,1781173839000,-186.0,0.0002808,2]
[424802564,1781173841000,-500.0,0.00032877,12]
[424802566,1781173841000,-166.0,0.00033041,7]
[424802562,1781173841000,-252.44682816,0.00032877,10]
[424802570,1781173841000,-179.12036085,0.000332,117]
[424802574,1781173841000,-76.46821027,0.00033921,2]
[424802572,1781173841000,-500.0,0.00033425,14]
[424802568,1781173841000,-166.0,0.00033041,7]
[424802901,1781173843000,-4423.10458991,0.00035147,2]
[424802917,1781173843000,-500.0,0.00035616,18]
[424802894,1781173843000,-243.0,0.00034668,120]
[424802895,1781173843000,-152.0,0.00034867,7]
[424802913,1781173843000,-151.0,0.000355,15]
[424802915,1781173843000,-188.9195648,0.00035611,2]
[424802897,1781173843000,-1000.0,0.00035139,30]
[424802892,1781173843000,-3250.28701688,0.000341,2]
[424802899,1781173843000,-492.0,0.00035139,30]
[424802909,1781173843000,-5000.0,0.000355,80]
[424802911,1781173843000,-151.0,0.000355,18]
[424802907,1781173843000,-5000.0,0.000354,70]
[424802890,1781173843000,-186.0,0.0003408,2]
[424802888,1781173843000,-444.0,0.0003408,2]
[424802886,1781173843000,-156.0,0.00033959,7]
[424802885,1781173843000,-156.0,0.00033959,7]
[424802883,1781173843000,-284.50480905,0.00033921,2]
[424802918,1781173843000,-500.0,0.00035616,18]
[424802905,1781173843000,-5000.0,0.000353,35]
[424802920,1781173843000,-500.0,0.00035616,18]
[424802903,1781173843000,-5000.0,0.000352,90]
[424802926,1781173843000,-500.0,0.00035616,18]
[424802922,1781173843000,-500.0,0.00035616,7]
[424802954,1781173843000,-500.0,0.00035616,18]
[424802955,1781173843000,-500.0,0.00035616,18]
[424802957,1781173843000,-500.0,0.00035616,18]
[424802951,1781173843000,-500.0,0.00035616,18]
[424802949,1781173843000,-500.0,0.00035616,18]
[424802952,1781173843000,-500.0,0.00035616,18]
[424802943,1781173843000,-500.0,0.00035616,18]
[424802945,1781173843000,-500.0,0.00035616,18]
[424802959,1781173843000,-500.0,0.00035616,18]
[424802935,1781173843000,-422.91253698,0.00035616,18]
[424802939,1781173843000,-500.0,0.00035616,18]
[424802933,1781173843000,-500.0,0.00035616,18]
[424802941,1781173843000,-500.0,0.00035616,18]
[424802931,1781173843000,-500.0,0.00035616,18]
[424802924,1781173843000,-500.0,0.00035616,18]
[424802928,1781173843000,-500.0,0.00035616,18]
[424802930,1781173843000,-500.0,0.00035616,18]
[424802947,1781173843000,-500.0,0.00035616,18]
[424802937,1781173843000,-500.0,0.00035616,18]
[424803035,1781173844000,-337.48716874,0.00035616,18]
[424803038,1781173844000,-500.0,0.00035616,18]